[Event "1st Serbian League 2022"]
[Site "Vrnjacka Banja"]
[Date "2022.09.26"]
[Round "7.13"]
[White "Sanal, Vahap"]
[Black "Indjic, Aleksandar"]
[Result "1/2-1/2"]
[ECO "E53"]
[WhiteElo "2595"]
[BlackElo "2628"]
[Annotator "TA"]
[PlyCount "88"]
[EventDate "2022.09.20"]
[EventType "team-tourn"]
[EventCountry "SRB"]
[SourceTitle "playchess.com"]
[Source "ChessBase"]
[SourceQuality "1"]
[TimeControl "40/5400+30:1800+30"]

{[%evp 18,88,5,4,0,0,-14,0,20,8,6,0,12,9,17,6,4,26,9,10,52,28,34,39,58,57,79,59,119,114,110,120,105,106,77,39,76,74,77,-35,130,143,187,159,202,187,195,153,139,143,176,0,115,0,182,162,177,177,175,67,174,43,51,0,0,-2,0,0,0,0,0,0,0]} 1. d4 {[%emt 0:01:30]} Nf6 {[%emt 0:01:10]} 2. c4 {[%emt 0:00:06]} e6 {[%emt 0:00:24]} 3. Nc3 {[%emt 0:00:20]} Bb4 {[%emt 0:01:54]} 4. e3 {[%emt 0:00:14]} O-O {[%emt 0:00:49]} 5. Bd3 {[%emt 0:00:22]} d5 {[%emt 0:00:16]} 6. a3 {[%emt 0:00:22]} Bxc3+ {[%emt 0:01:18]} 7. bxc3 {[%emt 0:00:08]} dxc4 {[%emt 0:00:06]} 8. Bxc4 {[%emt 0:00:08]} c5 {[%emt 0:00:05]} 9. Nf3 {[%emt 0:00:34]} Qc7 {[%emt 0:00:58]} 10. Be2 {[%emt 0:00:26]} Nc6 {[%emt 0:04:20] E53: Nimzo-Indian: Rubinstein: Main Line (4...0-0 5 Nf3 d5 6 Bd3 c5 7 0-0).} 11. c4 {[%emt 0:00:08]} Rd8 {[%emt 0:03:33]} 12. O-O {[%emt 0:00:17]} Ne7 {[%emt 0:03:08]} 13. Bb2 {[%emt 0:02:31]} b6 {[%emt 0:00:18] [#]} 14. Qb3 $146 {[%emt 0:04:24]} ({Predecessor:} 14. Re1 Bb7 15. Qb3 Rac8 16. Rac1 Nf5 17. Red1 cxd4 18. exd4 Qf4 19. g3 Qe4 20. Qd3 {½-½ (39) Kozak,A (2354)-Blohberger,F (2448) Mumbai 2019}) 14... cxd4 {[%emt 0:10:05]} 15. exd4 {[%emt 0:00:27]} Bb7 {[%emt 0:00:07]} 16. Ne5 {[%emt 0:08:17]} Ng6 {[%emt 0:10:22]} (16... Ne4 $5 {[%cal Re4d2]}) 17. Nxg6 {[%emt 0:11:13]} hxg6 {[%emt 0:00:15]} 18. a4 {[%emt 0:00:50]} a5 {[%emt 0:04:23]} 19. Rfc1 {[%emt 0:06:11]} Rab8 {[%emt 0:01:34]} 20. Qe3 {[%emt 0:01:30][%cal Od4d5]} Qd7 {[%emt 0:03:25] Prevents d5.} 21. Ra3 {[%emt 0:01:07]} Bc6 {[%emt 0:00:29]} 22. Qg5 {[%emt 0:07:46]} Nh7 {[%emt 0:02:25]} (22... Re8 $14) 23. Qh4 $16 {[%emt 0:05:54] Black must now prevent Rh3.} g5 {[%emt 0:00:09]} 24. Qh5 {[%emt 0:00:19][%cal Od4d5] And now d5! would win.} Be4 {[%emt 0:00:04] Prevents d5.} 25. Bf1 {[%emt 0:14:05]} Bf5 {[%emt 0:07:18][%cal Oe6e5]} 26. Rd1 {[%emt 0:07:48]} Qc6 {[%emt 0:02:37]} 27. Re1 {[%emt 0:00:55]} Qd6 {[%emt 0:06:05]} 28. Re5 {[%emt 0:06:39]} (28. Qd1 $16) 28... Bg6 $2 {[%emt 0:02:48]} (28... Nf6 $1 $15 {stays ahead.} 29. Qxg5 Ng4) 29. Qe2 {[%emt 0:01:08]} Bf5 {[%emt 0:03:22]} 30. Rb3 {[%emt 0:01:21]} g4 {[%emt 0:02:18]} 31. Reb5 $1 {[%emt 0:01:48]} Nf6 {[%emt 0:00:27][%cal Bh7f6,Bf6d7,Bd7c5,Bc5a4][%mdl 32]} 32. Qe3 {[%emt 0:05:21]} Bc2 {[%emt 0:04:49]} 33. Ra3 {[%emt 0:00:08]} Bf5 {[%emt 0:01:48]} 34. Rab3 {[%emt 0:00:07]} (34. d5 $1 $18) 34... Bc2 {[%emt 0:00:07]} 35. Ra3 {[%emt 0:00:02]} (35. Rc3 $1 $16 {[%cal Rc3c2]} Bxa4 36. Rg5) 35... Bf5 $18 {[%emt 0:00:48]} 36. d5 $1 {[%emt 0:03:28]} Nd7 {[%emt 0:00:49]} 37. dxe6 {[%emt 0:01:00]} Bxe6 {[%emt 0:07:06] [#]} 38. Rd3 {[%emt 0:01:23]} (38. h3 $1 $18) 38... Qc6 {[%emt 0:00:07] [#]} (38... Qe7 $1 $14) 39. Qd2 {[%emt 0:05:44]} ({White should try} 39. Rxd7 $1 $18 {[%cal Oe3g5][%mdl 512] Qg5! would kill now.} Bxd7 40. Rg5) 39... Qc7 $1 $14 {[%emt 0:02:27]} (39... Bxc4 $2 40. Rd6 Qxd6 41. Qxd6 $18) 40. Rd6 {[%emt 0:03:53]} ({Better is} 40. Re3 $14 Qf4 41. Qc3) 40... Nc5 $1 $11 {[%emt 0:01:42] The position is equal.} 41. Be5 {[%emt 0:05:27][%cal Od6e6] aiming for Rxe6! A strong pair of Bishops.} Rxd6 {[%emt 0:02:41]} 42. Qxd6 {[%emt 0:03:56]} ({Much weaker is} 42. Bxd6 Rd8 43. Bxc7 Rxd2 $17) 42... Qxd6 {[%emt 0:01:09]} 43. Bxd6 {[%emt 0:00:06]} Rc8 {[%emt 0:00:23]} 44. Rxb6 {[%emt 0:04:00]} Nxa4 {[%emt 0:01:38] Weighted Error Value: White=0.28 (precise) /Black=0.20 (precise)} 1/2-1/2

[Event "1st Serbian League 2022"]
[Site "Vrnjacka Banja"]
[Date "2022.09.26"]
[Round "7.14"]
[White "Ivanisevic, Ivan"]
[Black "Gurel, Ediz"]
[Result "1-0"]
[ECO "D17"]
[WhiteElo "2547"]
[BlackElo "2437"]
[Annotator "TA"]
[PlyCount "147"]
[EventDate "2022.09.20"]
[EventType "team-tourn"]
[EventCountry "SRB"]
[SourceTitle "playchess.com"]
[Source "ChessBase"]
[SourceQuality "1"]
[TimeControl "40/5400+30:1800+30"]

{[%evp 13,147,-6,30,9,1,3,2,2,0,2,15,8,20,13,22,20,16,10,15,0,0,7,6,0,24,35,29,24,38,38,38,37,24,0,0,0,0,0,34,22,32,34,32,31,33,38,38,38,38,38,38,29,31,14,16,7,37,33,37,37,38,34,39,39,36,10,10,8,106,19,28,13,14,12,16,12,15,0,0,0,0,0,0,0,43,0,135,125,229,226,200,192,322,286,384,366,385,384,410,470,514,552,555,546,546,475,495,493,744,667,627,530,1370,478,325,223,396,396,962,875,1414,1404,1780,924,867,569,2191,2095,1282,2009,12837,12837,12835,9250,29998,29999]} 1. d4 {[%emt 0:00:03]} d5 {[%emt 0:00:05]} 2. c4 {[%emt 0:00:05]} c6 {[%emt 0:00:03]} 3. Nf3 {[%emt 0:00:03]} Nf6 {[%emt 0:00:05]} 4. Nc3 {[%emt 0:00:08]} dxc4 {[%emt 0:00:22]} 5. a4 {[%emt 0:00:26]} Bf5 {[%emt 0:00:12]} 6. Ne5 {[%emt 0:00:08]} Nbd7 {[%emt 0:00:07] The main line 6...Nbd7 scores better than 6...e6.} 7. Nxc4 {[%emt 0:00:06]} Nb6 {[%emt 0:00:04]} 8. Ne3 {[%emt 0:00:29] D17: Slav Defence: 5 a4 Bf5: Lines with 6 Nh4 and 6 Ne5.} e6 {[%emt 0:00:22]} 9. Nxf5 {[%emt 0:00:24]} exf5 {[%emt 0:00:02]} 10. g3 {[%emt 0:00:10] The position is equal.} a5 {[%emt 0:01:23] [#]} 11. Bg2 $146 {[%emt 0:01:51]} ({Predecessor:} 11. Bh3 g6 12. O-O Bg7 13. Bg5 h6 14. Bxf6 Qxf6 15. e3 Qe7 16. Qb3 Qb4 17. Qc2 {½-½ (46) Fridman,D (2633)-Bluebaum,M (2521) Baden-Baden 2014}) 11... g6 {[%emt 0:01:13]} 12. O-O {[%emt 0:00:40]} Bg7 {[%emt 0:00:04]} 13. Bg5 {[%emt 0:05:57]} O-O {[%emt 0:04:47]} 14. e3 {[%emt 0:01:26]} Qd6 {[%emt 0:02:22]} 15. Bxf6 {[%emt 0:01:42]} Bxf6 {[%emt 0:01:22]} 16. Ra3 {[%emt 0:01:04]} Rfd8 {[%emt 0:18:40]} 17. Qc2 {[%emt 0:02:59]} Rac8 {[%emt 0:08:31]} 18. Rb3 {[%emt 0:04:07]} c5 {[%emt 0:01:16]} 19. Nb5 {[%emt 0:08:53]} Qb8 {[%emt 0:10:11][%cal Rc5d4]} 20. dxc5 {[%emt 0:02:47]} Nd7 {[%emt 0:07:36]} 21. c6 {[%emt 0:05:22]} bxc6 {[%emt 0:00:53]} 22. Nd4 {[%emt 0:02:15]} Qd6 {[%emt 0:08:28]} 23. Rc3 {[%emt 0:10:12][%cal Rc3c6] Prevents Nc5.} c5 {[%emt 0:09:11]} 24. Nb5 {[%emt 0:00:06]} Qb8 {[%emt 0:02:17]} 25. Rd3 {[%emt 0:00:57]} Nb6 {[%emt 0:01:15]} (25... c4 $5 {[%cal Rc4d3]} 26. Rd6 Be7 $14) 26. Rxd8+ {[%emt 0:01:09]} Rxd8 {[%emt 0:00:07]} 27. b3 {[%emt 0:00:33]} Nd7 {[%emt 0:04:59]} 28. Rd1 {[%emt 0:03:16]} Ne5 {[%emt 0:00:32]} 29. Rd5 {[%emt 0:02:44]} Rxd5 {[%emt 0:01:57]} 30. Bxd5 {[%emt 0:00:06]} Qb6 {[%emt 0:00:17]} 31. h3 {[%emt 0:02:02]} Kg7 {[%emt 0:01:33]} 32. Kg2 {[%emt 0:05:31]} h5 {[%emt 0:00:33]} 33. Qd1 {[%emt 0:13:13]} Qd8 {[%emt 0:01:39]} 34. f4 {[%emt 0:01:18]} Nc6 {[%emt 0:01:22]} 35. Bf3 {[%emt 0:01:23]} Qe8 {[%emt 0:05:26]} 36. Kf2 {[%emt 0:04:28]} Nb4 {[%emt 0:01:28]} 37. Nd6 {[%emt 0:03:38]} Qe7 {[%emt 0:03:00]} 38. Nc4 {[%emt 0:06:12]} h4 {[%emt 0:00:44]} 39. gxh4 {[%emt 0:05:59]} Bxh4+ {[%emt 0:01:11]} 40. Ke2 {[%emt 0:00:29]} Bf6 {[%emt 0:01:40]} (40... Bg3 $11 {remains equal.}) 41. Qd6 {[%emt 0:31:03]} ({Better is} 41. Nxa5 $16 {Hoping for Nc4.} Na2 42. Qd2) 41... Qa7 $11 {[%emt 0:04:03]} 42. Ne5 {[%emt 0:00:00]} Be7 {[%emt 0:04:13]} 43. Qd7 {[%emt 0:00:00]} Qa6+ {[%emt 0:00:17]} 44. Nc4 {[%emt 0:00:00]} Qf6 {[%emt 0:07:08]} 45. Qe8 {[%emt 0:00:00]} Na2 {[%emt 0:02:20]} 46. Ne5 {[%emt 0:00:00]} Bd6 {[%emt 0:01:05]} 47. Kd2 {[%emt 0:00:00] Black must now prevent Bd5.} Nb4 {[%emt 0:01:51] Prevents Bd5.} 48. h4 {[%emt 0:00:00]} Na6 {[%emt 0:04:02]} 49. h5 {[%emt 0:03:17][%cal Oe5f7]} (49. Bd5 $5 {[%cal Rd5f7]}) 49... Nc7 {[%emt 0:06:06]} (49... c4 $11) 50. h6+ $1 $16 {[%emt 0:00:27] Black is on the road to losing.} Kxh6 {[%emt 0:00:01]} (50... Kh7 $16 51. Qxf7+ Qxf7 52. Nxf7 Be7) 51. Nxf7+ $18 {[%emt 0:00:06]} Kg7 {[%emt 0:00:03] [#]} 52. Qd7 $1 {[%emt 0:00:04]} Qxf7 {[%emt 0:00:48]} (52... Qb2+ $2 53. Ke1 Be7 54. Qxe7 $18) (52... Be7 $142) 53. Qxd6 {[%emt 0:00:07][%mdl 4096] Endgame KQB-KQN} Ne8 {[%emt 0:00:19]} 54. Qxc5 {[%emt 0:01:12]} Nf6 {[%emt 0:02:09]} 55. Kc3 {[%emt 0:00:26]} Qe6 {[%emt 0:00:40]} 56. b4 {[%emt 0:01:31]} Qa2 {[%emt 0:00:35]} 57. bxa5 {[%emt 0:00:37]} (57. Qe7+ Kh6 $16) 57... Qxa4 {[%emt 0:00:19]} 58. Kb2 {[%emt 0:00:17]} Qd7 {[%emt 0:01:30] Inhibits Qe7+.} 59. Qc3 {[%emt 0:02:07] Inhibits Qd2+.} Qb5+ {[%emt 0:01:22]} 60. Ka3 {[%emt 0:00:10]} Qa6 {[%emt 0:00:01]} (60... Qd7 $142 61. Kb4 Qd6+ 62. Kb5 Qb8+ 63. Ka6 Qd8) 61. Bc6 {[%emt 0:00:39]} Kh7 {[%emt 0:01:16]} 62. Kb4 {[%emt 0:00:16]} Ng4 {[%emt 0:00:22]} 63. Bb5 {[%emt 0:01:09]} (63. Qc4 $142 Qa7 64. Qd4 Qb8+ 65. Ka4 Nxe3 66. Qxe3) 63... Qd6+ {[%emt 0:00:06]} 64. Kc4 {[%emt 0:01:10]} Qe6+ $2 {[%emt 0:00:26] [#]} (64... Qe7 {was called for.} 65. Bc6 Qc7) 65. Kc5 $1 {[%emt 0:00:31] Threatens to win with a6.} ({Weaker is} 65. Kb4 Qd6+ 66. Kb3 Qd1+ 67. Kb4 Qd6+ $18) 65... Nxe3 $2 {[%emt 0:02:11]} (65... Nf6 66. Bc6 Nd7+ 67. Bxd7 Qxd7) 66. Qe5 {[%emt 0:00:39]} Qf7 {[%emt 0:01:10]} 67. a6 {[%emt 0:00:36]} Ng4 {[%emt 0:01:38]} 68. Qd6 {[%emt 0:00:15] aiming for Qd7.} Nf6 {[%emt 0:00:22] Inhibits Qd7.} 69. Kc6 {[%emt 0:01:17] Strongly threatening Qc7. Active counter play!} Qe8+ {[%emt 0:00:32]} 70. Kb6 {[%emt 0:00:12]} Qe3+ {[%emt 0:00:03]} 71. Kb7 {[%emt 0:00:23]} Ne4 {[%emt 0:00:51]} 72. Qc7+ {[%emt 0:00:23]} Kh6 {[%emt 0:00:01]} 73. Qe5 {[%emt 0:00:43][%cal Re5h8]} g5 {[%emt 0:00:56]} 74. Qh8+ {[%emt 0:03:32] Weighted Error Value: White=0.07 (flawless) /Black=0.22 (precise)} 1-0

[Event "1st Serbian League 2022"]
[Site "Vrnjacka Banja"]
[Date "2022.09.26"]
[Round "7.15"]
[White "Markus, Robert"]
[Black "Perunovic, Milos"]
[Result "1/2-1/2"]
[ECO "E05"]
[WhiteElo "2615"]
[BlackElo "2542"]
[Annotator "TA"]
[PlyCount "60"]
[EventDate "2022.09.20"]
[EventType "team-tourn"]
[EventCountry "SRB"]
[SourceTitle "playchess.com"]
[Source "ChessBase"]
[SourceQuality "1"]
[TimeControl "40/5400+30:1800+30"]

{[%evp 13,60,2,3,9,25,30,37,27,29,29,29,27,25,27,27,22,27,34,29,21,19,8,10,6,10,0,0,0,0,0,2,2,34,18,28,8,8,8,8,8,8,8,8,8,8,8,8,8,9]} 1. d4 {[%emt 0:00:36]} Nf6 {[%emt 0:00:37]} 2. c4 {[%emt 0:00:26]} e6 {[%emt 0:00:30]} 3. Nf3 {[%emt 0:00:33]} d5 {[%emt 0:00:44]} 4. g3 {[%emt 0:01:24]} Be7 {[%emt 0:05:18]} 5. Bg2 {[%emt 0:00:49]} O-O {[%emt 0:00:35]} 6. O-O {[%emt 0:05:33]} dxc4 {[%emt 0:01:25]} 7. Qc2 {[%emt 0:01:30]} b5 {[%emt 0:02:53]} 8. a4 {[%emt 0:03:58] E05: Open Catalan: 5 Nf3 Be7.} Bb7 {[%emt 0:00:40]} 9. axb5 {[%emt 0:00:24]} a6 {[%emt 0:00:14]} 10. Nc3 {[%emt 0:06:54] Prevents Be4. White is slightly better.} axb5 {[%emt 0:01:44]} 11. Rxa8 {[%emt 0:00:17]} Bxa8 {[%emt 0:00:05]} 12. Nxb5 {[%emt 0:00:35]} Bd5 {[%emt 0:01:16]} 13. Bf4 {[%emt 0:07:59]} c5 {[%emt 0:04:08]} 14. dxc5 {[%emt 0:04:01]} Qa5 {[%emt 0:06:43]} 15. Nc3 {[%emt 0:02:29]} Qxc5 {[%emt 0:00:43]} 16. Nxd5 {[%emt 0:07:04] 16.Be3 is a critical line.} Nxd5 {[%emt 0:00:23][%cal Bf6d5,Bd5b4,Bb4d3][%mdl 32]} 17. Bd2 {[%emt 0:00:14]} Rc8 {[%emt 0:06:55]} 18. Rc1 {[%emt 0:07:59]} Nd7 {[%emt 0:04:07]} 19. e3 {[%emt 0:05:30] [#]} Nb4 $146 {[%emt 0:07:25]} ({Predecessor:} 19... Bf6 20. Bf1 N7b6 21. Qb1 Be7 22. Ne5 c3 23. bxc3 Qc7 24. Nf3 Nc4 25. Be1 Ndb6 {½-½ (63) Vidit,S (2723)-Nakamura,H (2766) Chess.com INT 2022}) 20. Qe4 {[%emt 0:04:50]} Nd3 {[%emt 0:01:32]} 21. Rc2 {[%emt 0:00:16]} Nf6 {[%emt 0:07:37] Pair of Knights!} 22. Qd4 {[%emt 0:01:01]} e5 {[%emt 0:03:24]} 23. Qxc5 {[%emt 0:00:26]} Rxc5 {[%emt 0:00:07]} 24. Ng5 {[%emt 0:37:42]} g6 {[%emt 0:06:49] The position is equal.} 25. Ne4 {[%emt 0:00:00]} Nxe4 {[%emt 0:00:28]} 26. Bxe4 {[%emt 0:00:00]} f5 {[%emt 0:02:18]} 27. Bb7 {[%emt 0:00:00]} e4 {[%emt 0:01:51]} 28. Ba6 {[%emt 0:00:00]} Kg7 {[%emt 0:00:59]} 29. Rxc4 {[%emt 0:00:00]} Rxc4 {[%emt 0:00:20]} 30. Bxc4 {[%emt 0:00:00] [#] Black must now prevent Bc3+.} Nxb2 {[%emt 0:00:28] Weighted Error Value: White=0.03 (flawless) /Black=0.03 (flawless)} 1/2-1/2

[Event "1st Serbian League 2022"]
[Site "Vrnjacka Banja"]
[Date "2022.09.26"]
[Round "7.16"]
[White "Miljkovic, Miroslav D"]
[Black "Solak, Dragan"]
[Result "0-1"]
[ECO "A21"]
[WhiteElo "2456"]
[BlackElo "2592"]
[Annotator "TA"]
[PlyCount "49"]
[EventDate "2022.09.20"]
[EventType "team-tourn"]
[EventCountry "SRB"]
[SourceTitle "playchess.com"]
[Source "ChessBase"]
[SourceQuality "1"]
[TimeControl "40/5400+30:1800+30"]

{[%evp 10,49,33,27,25,14,26,17,33,26,30,29,32,7,9,5,8,10,14,29,19,0,0,-30,-25,-10,0,-20,-14,-83,-74,-74,-74,-111,-98,-101,-100,-425,-436,-487,-483,-435]} 1. d4 {[%emt 0:00:04]} d6 {[%emt 0:01:53]} 2. c4 {[%emt 0:00:20]} e5 {[%emt 0:00:48]} 3. Nf3 {[%emt 0:00:12]} e4 {[%emt 0:00:17]} 4. Ng5 {[%emt 0:00:13]} f5 {[%emt 0:00:06]} 5. Nc3 {[%emt 0:01:41]} Nf6 {[%emt 0:00:17]} 6. h4 {[%emt 0:04:55]} Be7 {[%emt 0:02:14] A21: English Opening: 1...e5 2 Nc3.} 7. Nh3 {[%emt 0:10:16]} O-O {[%emt 0:03:54]} 8. Bf4 {[%emt 0:13:42]} c6 {[%emt 0:19:38] The position is equal.} 9. e3 {[%emt 0:07:47]} Na6 {[%emt 0:02:04]} 10. Be2 {[%emt 0:06:48]} Nc7 {[%emt 0:00:07] [#]} 11. Qc2 $146 {[%emt 0:04:28]} ({Predecessor:} 11. Bg3 Ne6 12. d5 Nc5 13. b4 Na6 14. Rb1 Nc7 15. Nf4 Qe8 16. O-O Qf7 17. Qd2 {0-1 (38) Bouget,A (2224)-Kuipers,S (2401) Chess.com INT 2017}) 11... Be6 {[%emt 0:06:48]} 12. h5 {[%emt 0:05:21]} h6 {[%emt 0:04:20]} 13. Bg3 {[%emt 0:05:59]} Bf7 {[%emt 0:02:46]} 14. Nf4 {[%emt 0:01:19]} Qd7 {[%emt 0:00:26]} 15. Rc1 {[%emt 0:12:59]} (15. Ng6 {is more complex.} Rfc8 16. Bh4 Rab8 17. Bxf6 Bxf6 18. g4) 15... Rfc8 {[%emt 0:07:40]} 16. Qd1 {[%emt 0:01:17]} b5 {[%emt 0:03:27]} 17. b3 {[%emt 0:03:00]} a6 {[%emt 0:04:41]} 18. O-O {[%emt 0:05:53]} d5 {[%emt 0:05:38]} 19. c5 {[%emt 0:01:32]} (19. Ng6 $11 {remains equal.}) 19... Ne6 {[%emt 0:01:51]} 20. Nxe6 {[%emt 0:11:55]} Qxe6 {[%emt 0:00:24]} 21. Be5 {[%emt 0:00:37]} Ng4 {[%emt 0:02:32]} 22. Bxg4 {[%emt 0:00:22]} fxg4 {[%emt 0:00:04]} 23. f4 $2 {[%emt 0:00:49][%mdl 8192] [#]} (23. Ne2 $17 {is more resistant.}) 23... gxf3 $1 $19 {[%emt 0:00:29]} 24. gxf3 {[%emt 0:00:18]} Bxh5 {[%emt 0:00:17] White must now prevent ...Qg6+.} 25. Qe1 {[%emt 0:00:00] Weighted Error Value: White=0.44/Black=0.04 (flawless)} 0-1

[Event "1st Serbian League 2022"]
[Site "Vrnjacka Banja"]
[Date "2022.09.26"]
[Round "7.17"]
[White "Kovacevic, Aleksandar"]
[Black "Kosic, Dragan"]
[Result "1/2-1/2"]
[ECO "C13"]
[WhiteElo "2471"]
[BlackElo "2399"]
[Annotator "TA"]
[PlyCount "33"]
[EventDate "2022.09.20"]
[EventType "team-tourn"]
[EventCountry "SRB"]
[SourceTitle "playchess.com"]
[Source "ChessBase"]
[SourceQuality "1"]
[TimeControl "40/5400+30:1800+30"]

{[%evp 14,33,30,25,36,22,31,22,36,19,37,18,10,4,0,7,1,0,0,0,0,-2]} 1. e4 {[%emt 0:00:11]} e6 {[%emt 0:00:16]} 2. d4 {[%emt 0:00:16]} d5 {[%emt 0:00:05]} 3. Nc3 {[%emt 0:00:29]} Nf6 {[%emt 0:02:05]} 4. Bg5 {[%emt 0:00:21]} dxe4 {[%emt 0:00:45]} 5. Nxe4 {[%emt 0:00:07]} Be7 {[%emt 0:00:03]} 6. Bxf6 {[%emt 0:00:38]} Bxf6 {[%emt 0:00:12]} 7. Nf3 {[%emt 0:00:35]} Bd7 {[%emt 0:00:06]} 8. Qd2 {[%emt 0:01:05]} Be7 {[%emt 0:00:51] [#] C13: French: Classical System: 4 Bg5 Be7, Alekhine-Chatard Attack.} 9. Qf4 $146 {[%emt 0:07:27]} ({Predecessor:} 9. Ne5 Nc6 10. O-O-O Bd6 11. f4 Qe7 12. g3 O-O-O 13. Bg2 Bxe5 14. fxe5 Be8 15. Qc3 Qb4 16. Qxb4 Nxb4 {½-½ (72) Rodi,L (2319)-Maia,L (2372) Sao Paulo 2007}) 9... Bc6 {[%emt 0:02:49]} 10. Ne5 {[%emt 0:01:29][%csl Ge5][%cal Rf4f7] [#] Pair of Knights!} O-O {[%emt 0:00:46]} 11. Bd3 {[%emt 0:04:12]} Nd7 {[%emt 0:03:54]} 12. Nxc6 {[%emt 0:06:00]} bxc6 {[%emt 0:00:09] The position is equal.} 13. O-O {[%emt 0:17:43]} Rb8 {[%emt 0:02:14]} 14. b3 {[%emt 0:00:40]} c5 {[%emt 0:10:30]} 15. Nxc5 {[%emt 0:06:11]} Nxc5 {[%emt 0:01:51]} 16. dxc5 {[%emt 0:00:10]} Bxc5 {[%emt 0:00:09]} 17. Rad1 {[%emt 0:00:27] An even fight not without its subleties.  Weighted Error Value: White=0.08 (flawless) /Black=0.07 (flawless)} 1/2-1/2

[Event "1st Serbian League 2022"]
[Site "Vrnjacka Banja"]
[Date "2022.09.26"]
[Round "7.18"]
[White "Laketic, Gojko"]
[Black "Brenjo, Slavisa"]
[Result "1/2-1/2"]
[ECO "E92"]
[WhiteElo "2255"]
[BlackElo "2409"]
[Annotator "TA"]
[PlyCount "61"]
[EventDate "2022.09.20"]
[EventType "team-tourn"]
[EventCountry "SRB"]
[SourceTitle "playchess.com"]
[Source "ChessBase"]
[SourceQuality "1"]
[TimeControl "40/5400+30:1800+30"]

{[%evp 29,61,19,34,47,42,41,58,54,50,56,75,21,11,30,36,21,86,39,51,0,0,0,0,0,0,0,0,0,0,-5,50,14,64,-8]} 1. d4 {[%emt 0:01:56]} Nf6 {[%emt 0:00:09]} 2. c4 {[%emt 0:00:17]} g6 {[%emt 0:00:07]} 3. Nc3 {[%emt 0:00:13]} Bg7 {[%emt 0:00:06]} 4. e4 {[%emt 0:00:11]} d6 {[%emt 0:00:07]} 5. Nf3 {[%emt 0:00:10]} O-O {[%emt 0:00:10]} 6. Be2 {[%emt 0:00:04]} e5 {[%emt 0:00:15]} 7. d5 {[%emt 0:00:06]} a5 {[%emt 0:00:55]} 8. Bg5 {[%emt 0:00:37]} h6 {[%emt 0:00:16]} 9. Bh4 {[%emt 0:00:02]} Na6 {[%emt 0:01:07]} 10. Nd2 {[%emt 0:00:31]} Qe8 {[%emt 0:03:54]} 11. Rb1 {[%emt 0:01:25]} Bd7 {[%emt 0:02:56]} 12. O-O {[%emt 0:02:49]} Nh7 {[%emt 0:04:24]} 13. b3 {[%emt 0:01:43]} h5 {[%emt 0:06:21]} 14. f3 {[%emt 0:01:45]} Bh6 {[%emt 0:01:07]} 15. a3 {[%emt 0:00:22]} Nc5 {[%emt 0:01:17]} 16. Qc2 {[%emt 0:01:52] E92: King's Indian: Classical: 6 Be2 e5: 7 dxe5, 7 Be3 and Petrosian System without 7...Nbd7.} Be3+ {[%emt 0:02:04]} 17. Kh1 {[%emt 0:03:25]} Bd4 {[%emt 0:06:34]} 18. Nb5 {[%emt 0:11:27]} Bxb5 {[%emt 0:01:00]} 19. cxb5 {[%emt 0:00:30]} f5 {[%emt 0:08:23]} 20. b4 {[%emt 0:20:40]} (20. exf5 $16 gxf5 21. Rbd1) 20... axb4 $11 {[%emt 0:00:22]} 21. axb4 {[%emt 0:00:06]} Na4 {[%emt 0:00:19]} 22. Rb3 {[%emt 0:00:08] [#] Prevents Nc3.} ({Reject} 22. Qxc7 Nc3 23. Rbe1 Nxe2 24. Rxe2 Qxb5 $11) 22... Qf7 $146 {[%emt 0:06:28]} (22... Nb6 $11 {keeps the balance.}) ({Predecessor:} 22... Qd7 23. Bf2 Nf6 24. Bxd4 exd4 25. Qc4 Nc3 26. Bd3 fxe4 27. fxe4 Ng4 28. Rxf8+ Rxf8 29. Qxd4 Nxb5 {0-1 (39) Hagen,A (2084)-Guttulsrud,O (2110) Oslo 2011}) 23. Ra3 {[%emt 0:11:21]} ({White should play} 23. exf5 $16 gxf5 24. f4) 23... Nb6 {[%emt 0:00:21]} 24. Ra5 {[%emt 0:08:00]} (24. Rxa8 $14 Rxa8 25. exf5) 24... g5 {[%emt 0:09:23]} 25. Be1 {[%emt 0:00:49]} f4 {[%emt 0:01:16]} 26. Nb3 {[%emt 0:03:53]} Be3 {[%emt 0:00:44]} 27. Bd2 {[%emt 0:00:27]} Bxd2 {[%emt 0:00:55]} 28. Nxd2 {[%emt 0:01:17]} Rab8 {[%emt 0:07:15]} 29. Rc1 {[%emt 0:01:03]} Rfc8 {[%emt 0:01:00]} (29... Qd7 $11) 30. Ra3 {[%emt 0:01:15]} Nf6 {[%emt 0:00:46]} (30... Qd7 $11) 31. Qd1 {[%emt 0:05:02] Weighted Error Value: White=0.17 (very precise) /Black=0.18 (very precise)} (31. Ra7 $1 $14) 1/2-1/2